{"text_format":"1","workbook":"xlsx","n_sheets":2,"sheets":["Dokonaj wyboru","Lista zakupowa"],"not_rendered":{"charts":0,"images":2,"macros":1,"external_links":1,"defined_names":2,"comments":0,"pivot_tables":0},"unopened":[],"bounds":{"document_bytes":16777216,"sheet_cells":100000,"rows_first":2000,"rows_last":500,"rows_between":2000,"halvings":0,"cell_chars":16384,"cell_head_chars":4096},"cells_cut":0,"cells_raw":0,"read":"whole","date_system":"1900"}

{"sheet":"Dokonaj wyboru","index":0,"n_rows":39,"n_cols":23,"rows_kept":39,"cut":false,"hidden":false,"merged":[[8,0,8,2],[8,6,8,8],[8,12,8,14],[8,18,8,20]]}
[null,null,"Kalkulator pomocy dydaktycznych",null,"w ramach dofinansowania MEiN na pracownie przyrodnicze"]
["Rok 2021"]
[null,"Instrukcja obsługi",null,null,null,null,null,null,null,null,{"$f":"E9+K9+Q9+W9","v":0},"← RAZEM brutto dla całej szkoły"]
["1. Wpisz wybraną liczbę elementów w rubryce L. szt. (pozostałe przedmioty - z prawej strony)."]
["2. Pamietaj, by zgrupowane elementy zaznaczone na niebiesko wybierać razem albo w ogóle."]
["3. W ramach jednego z przedmiotów (i tylko jednego dla całej szkoły) wybierz PS-2400-DIG (Program SPARKvue do obsługi czujników i doświadczeń - licencja bezterminowa na wszystkie komputery w placówce) - zaznaczony na zielono. Wtedy licencja PS-2401-DIG na jeden komputer nie jest już potrzebna."]
["4. Kliknij zielony przycisk \"Utwórz gotową listę zakupów\" - gotowy dokument znajdzie się w zakładce \"Lista zakupowa\". UWAGA! - obsługa makr musi być właczona!"]
[]
["GEOGRAFIA",null,null,null,{"$f":"SUM(E11:E50)","v":0},null,"BIOLOGIA",null,null,null,{"$f":"SUM(K11:K50)","v":0},null,"FIZYKA",null,null,null,{"$f":"SUM(Q11:Q50)","v":0},null,"CHEMIA",null,null,null,{"$f":"SUM(W11:W50)","v":0}]
["Symbol","Zestaw zawiera","L. szt.","Cena brutto","Wartość brutto",null,"Symbol","Zestaw zawiera","L. szt.","Cena brutto","Wartość brutto",null,"Symbol","Zestaw zawiera","L. szt.","Cena brutto","Wartość brutto",null,"Symbol","Zestaw zawiera","L. szt.","Cena brutto","Wartość brutto"]
["PS-3209","Bezprzewodowy czujnik pogody z GPS",null,1564,{"$f":"D11*C11","v":0},null,"PS-3201","Bezprzewodowy czujnik temperatury",null,432,{"$f":"J11*I11","v":0},null,"ME-5718A","Tor metalowy 1,2 m z 2 wózkami pomiarowymi SMART - zestaw z akcesoriami",null,4275,{"$f":"P11*O11","v":0},null,"PS-3201","Bezprzewodowy czujnik temperatury",null,432,{"$f":"V11*U11","v":0}]
["PS-3553","Akcesoria wiatromierza do czujnika pogody",null,296,0,null,"PS-3208","Bezprzewodowy czujnik CO2",null,1846,0,null,"PS-3201","Bezprzewodowy czujnik temperatury",null,432,0,null,"PS-3204","Bezprzewodowy czujnik pH",null,645,0]
["PS-3213","Bezprzewodowy czujnik światła",null,655,0,null,"PS-3204","Bezprzewodowy czujnik pH",null,645,0,null,"PS-3202","Bezprzewodowy czujnik siły i przyspieszenia",null,937,0,null,"PS-3514","Sonda pH do powierzchni płaskich",null,369,0]
["PS-3201","Bezprzewodowy czujnik temperatury",null,432,0,null,"PS-3514","Sonda pH do powierzchni płaskich",null,369,0,null,"PS-3219","Bezprzewodowy czujnik położenia",null,937,0,null,"PS-3210","Bezprzewodowy czujnik konduktywności",null,918,0]
["PS-2401-DIG","Program SPARKvue do obsługi czujników i doświadczeń - licencja bezterminowa na jeden komputer (cyfr.)",null,797,0,null,"PS-3213","Bezprzewodowy czujnik światła",null,655,0,null,"PS-3203","Bezprzewodowy czujnik ciśnienia",null,816,0,null,"PS-3208","Bezprzewodowy czujnik CO2",null,1846,0]
["PS-2400-DIG","Program SPARKvue do obsługi czujników i doświadczeń - licencja bezterminowa na wszystkie komputery w placówce (cyfr.)",null,2332,0,null,"PS-3217","Bezprzewodowy czujnik tlenu",null,1719,0,null,"PS-3211","Bezprzewodowy czujnik napięcia elektrycznego",null,602,0,null,"PS-3545","Osłona wodoodporna do czujnika CO2",null,184,0]
["PS-3500","Adapter USB - Bluetooth 4.0",null,121,0,null,"PS-3207","Bezprzewodowy czujnik tętna wysiłkowy",null,724,0,null,"PS-3212","Bezprzewodowy czujnik natężenia prądu",null,709,0,null,"PS-3203","Bezprzewodowy czujnik ciśnienia",null,816,0]
["SMART-75","Monitor Interaktywny 75\" SMART SBID-GX175",null,9500,0,null,"PS-3218","Bezprzewodowy czujnik ciśnienia krwi",null,918,0,null,"EM-3534","Bezprzewodowy moduł amperomierza",null,627,0,null,"PS-3217","Bezprzewodowy czujnik tlenu",null,1719,0]
["SMART-65","Monitor Interaktywny 65\" SMART SBID-GX165",null,7500,0,null,"PS-2111-FR","PASPORT Czujnik EKG (UE)",null,1394,0,null,"EM-3535","Modułowy obwód prądu - podstawowy",null,1589,0,null,"PS-3224","Bezprzewodowy czujnik tlenu rozpuszczonego",null,2735,0]
["ACER-15","Laptop ACER TM-P215-53 (15\" i3-1115G4, 8GB, 256 GB, Win10 Pro EDU)",null,3500,0,null,"PS-3200","Interfejs AirLink",null,510,0,null,"PS-3211","Bezprzewodowy czujnik napięcia elektrycznego",null,602,0,null,"PS-3202","Bezprzewodowy czujnik siły i przyspieszenia",null,937,0]
["ACER-311","Laptop ACER TM-B311-RN (11,5\", Pentium Silver N5030, 4GB, 128 GB, Win10 Pro EDU)",null,2500,0,null,"PS-3227","Bezprzewodowy czujnik dźwięku",null,772,0,null,"EM-3533","Bezprzewodowy moduł generatora sygnału AC/DC ",null,1248,0,null,"PS-2401-DIG","Program SPARKvue do obsługi czujników i doświadczeń - licencja bezterminowa na jeden komputer (cyfr.)",null,797,0]
["TABLET","Tablet ACER ENDURO URBAN T1 (10,1\", 2GB, 32GB)",null,1300,0,null,"PS-2163","PASPORT Czujnik wilgotności gleby                                                                       ",null,1676,0,null,"PS-3213","Bezprzewodowy czujnik światła",null,655,0,null,"PS-2400-DIG","Program SPARKvue do obsługi czujników i doświadczeń - licencja bezterminowa na wszystkie komputery w placówce (cyfr.)",null,2332,0]
["WIZ","Wizualizer SMART Document Camera 550",null,3700,0,null,"PS-3200","Interfejs AirLink",null,510,0,null,"PS-3227","Bezprzewodowy czujnik dźwięku",null,772,0,null,"PS-3500","Adapter USB - Bluetooth 4.0",null,121,0]
[null,null,null,null,null,null,"PS-3215","Bezprzewodowy kolorymetr i czujnik zmętnienia",null,1049,0,null,"PS-3221","Bezprzewodowy 3-osiowy czujnik pola magnetycznego",null,690,0,null,"SMART-75","Monitor Interaktywny 75\" SMART SBID-GX175",null,9500,0]
[null,null,null,null,null,null,"PS-2187","PASPORT Czujnik częstości oddechu",null,1870,0,null,"OS-8515C","Zestaw do optyki - podstawowy",null,3876,0,null,"SMART-65","Monitor Interaktywny 65\" SMART SBID-GX165",null,7500,0]
[null,null,null,null,null,null,"PS-3200","Interfejs AirLink",null,510,0,null,"ME-1246","Wyświetlacz wektorów do wózka pomiarowego SMART",null,627,0,null,"ACER-15","Laptop ACER TM-P215-53 (15\" i3-1115G4, 8GB, 256 GB, Win10 Pro EDU)",null,3500,0]
[null,null,null,null,null,null,"PS-2521B","Pojemnik do fotosyntezy",null,627,0,null,"PS-3225","Bezprzewodowa inteligentna fotobramka podwójna",null,704,0,null,"ACER-311","Laptop ACER TM-B311-RN (11,5\", Pentium Silver N5030, 4GB, 128 GB, Win10 Pro EDU)",null,2500,0]
[null,null,null,null,null,null,"ME-6667","Eko-komora",null,393,0,null,"ME-6816","Zbiorniki ilustrujące cyrkulację i konwekcję",null,704,0,null,"TABLET","Tablet ACER ENDURO URBAN T1 (10,1\", 2GB, 32GB)",null,1300,0]
[null,null,null,null,null,null,"PS-2401-DIG","Program SPARKvue do obsługi czujników i doświadczeń - licencja bezterminowa na jeden komputer (cyfr.)",null,797,0,null,"PS-3231","Urządzenie //code.Node",null,632,0,null,"WIZ","Wizualizer SMART Document Camera 550",null,3700,0]
[null,null,null,null,null,null,"PS-2400-DIG","Program SPARKvue do obsługi czujników i doświadczeń - licencja bezterminowa na wszystkie komputery w placówce (cyfr.)",null,2332,0,null,"PS-3220","Bezprzewodowy czujnik położenia w ruchu obrotowym",null,1627,0]
[null,null,null,null,null,null,"PS-3500","Adapter USB - Bluetooth 4.0",null,121,0,null,"PS-2401-DIG","Program SPARKvue do obsługi czujników i doświadczeń - licencja bezterminowa na jeden komputer (cyfr.)",null,797,0]
[null,null,null,null,null,null,"SMART-75","Monitor Interaktywny 75\" SMART SBID-GX175",null,9500,0,null,"PS-2400-DIG","Program SPARKvue do obsługi czujników i doświadczeń - licencja bezterminowa na wszystkie komputery w placówce (cyfr.)",null,2332,0]
[null,null,null,null,null,null,"SMART-65","Monitor Interaktywny 65\" SMART SBID-GX165",null,7500,0,null,"PS-3500","Adapter USB - Bluetooth 4.0",null,121,0]
[null,null,null,null,null,null,"ACER-15","Laptop ACER TM-P215-53 (15\" i3-1115G4, 8GB, 256 GB, Win10 Pro EDU)",null,3500,0,null,"SMART-75","Monitor Interaktywny 75\" SMART SBID-GX175",null,9500,0]
[null,null,null,null,null,null,"ACER-311","Laptop ACER TM-B311-RN (11,5\", Pentium Silver N5030, 4GB, 128 GB, Win10 Pro EDU)",null,2500,0,null,"SMART-65","Monitor Interaktywny 65\" SMART SBID-GX165",null,7500,0]
[null,null,null,null,null,null,"TABLET","Tablet ACER ENDURO URBAN T1 (10,1\", 2GB, 32GB)",null,1300,0,null,"ACER-15","Laptop ACER TM-P215-53 (15\" i3-1115G4, 8GB, 256 GB, Win10 Pro EDU)",null,3500,0]
[null,null,null,null,null,null,"WIZ","Wizualizer SMART Document Camera 550",null,3700,0,null,"ACER-311","Laptop ACER TM-B311-RN (11,5\", Pentium Silver N5030, 4GB, 128 GB, Win10 Pro EDU)",null,2500,0]
[null,null,null,null,null,null,null,null,null,null,null,null,"TABLET","Tablet ACER ENDURO URBAN T1 (10,1\", 2GB, 32GB)",null,1300,0]
[null,null,null,null,null,null,null,null,null,null,null,null,"WIZ","Wizualizer SMART Document Camera 550",null,3700,0]

{"sheet":"Lista zakupowa","index":1,"n_rows":40,"n_cols":20,"rows_kept":40,"cut":false,"hidden":false,"merged":[[3,2,3,16],[5,1,5,17],[7,0,7,4],[7,5,7,9],[7,10,7,14],[7,15,7,19],[38,3,38,4],[38,8,38,9],[38,13,38,14],[38,18,38,19],[39,0,39,17],[39,18,39,19]]}
[]
[]
[]
[null,null,"Nazwa Szkoły: ____________________________________________________________"]
[]
[null,"Wykaz pomocy dydaktycznych do zakupienia za środki z dofinansowania MEN za wyposażenie pracowni przyrodniczych"]
[]
["Geografia",null,null,null,null,"Biologia",null,null,null,null,"Fizyka",null,null,null,null,"Chemia"]
["Nr kat","Nazwa","Szt.","Cena [zł]","Wartość [zł]","Nr kat","Nazwa","Szt.","Cena [zł]","Wartość [zł]","Nr kat","Nazwa","Szt.","Cena [zł]","Wartość [zł]","Nr kat","Nazwa","Szt.","Cena [zł]","Wartość [zł]"]
[]
[]
[]
[]
[]
[]
[]
[]
[]
[]
[]
[]
[]
[]
[]
[]
[]
[]
[]
[]
[]
[]
[]
[]
[]
[]
[]
[]
[]
[null,null,null,{"$f":"SUM(E10:E38)","v":0},null,null,null,null,{"$f":"SUM(J10:J38)","v":0},null,null,null,null,{"$f":"SUM(O10:O38)","v":0},null,null,null,null,{"$f":"SUM(T10:T38)","v":0}]
["R A Z E M ",null,null,null,null,null,null,null,null,null,null,null,null,null,null,null,null,null,{"$f":"D39+I39+N39+S39","v":0}]